fUSD/lending_fUSD_20240122
["ID","MTS","AMOUNT","RATE_DAILY","PERIOD"]
[312503508,1705935141855,-500.0,0.00055342,120]
[312503509,1705935141883,-500.0,0.00055342,120]
[312503510,1705935141910,-500.0,0.00055342,120]
[312503511,1705935141939,-544.54917716,0.00055342,120]
[312503512,1705935141966,-500.0,0.00055342,120]
[312503513,1705935141994,-500.0,0.00055342,120]
[312503514,1705935142022,-500.0,0.00055342,120]
[312503515,1705935142049,-500.0,0.00055342,120]
[312503516,1705935142077,-559.06,0.00055342,120]
[312503517,1705935142105,-500.0,0.00055342,120]
[312503518,1705935142132,-500.0,0.00055342,120]
[312503519,1705935142160,-500.0,0.00055342,120]
[312503520,1705935142192,-500.0,0.00055342,120]
[312503521,1705935142221,-500.0,0.00055342,120]
[312503522,1705935142249,-500.0,0.00055342,120]
[312503523,1705935142275,-500.0,0.00055342,120]
[312503524,1705935142305,-500.0,0.00055342,120]
[312503525,1705935142333,-500.0,0.00055342,120]
[312503526,1705935142359,-500.0,0.00055342,120]
[312503527,1705935142388,-481.04249996,0.00055342,120]
[312503528,1705935142414,-500.0,0.00055342,120]
[312503529,1705935142440,-500.0,0.00055342,120]
[312503530,1705935142468,-500.0,0.00055342,120]
[312503531,1705935142665,-500.0,0.00055342,120]
[312503532,1705935142695,-626.59,0.00055342,120]
[312503533,1705935142723,-500.0,0.00055342,120]
[312503534,1705935142752,-551.71,0.00055342,120]
[312503535,1705935142779,-500.0,0.00055342,120]
[312503536,1705935142807,-500.0,0.00055342,120]
[312503537,1705935142833,-500.0,0.00055342,120]
[312503538,1705935142859,-500.0,0.00055342,120]
[312503539,1705935142886,-500.0,0.00055342,120]
[312503540,1705935142912,-500.0,0.00055342,120]
[312503541,1705935142941,-500.0,0.00055342,120]
[312503542,1705935142971,-500.0,0.00055342,120]
[312503543,1705935143003,-223.64566138,0.00055342,120]
[312503544,1705935143036,-500.0,0.00055342,120]
[312503545,1705935143065,-500.0,0.00055342,120]
[312503546,1705935143097,-500.0,0.00055342,120]
[312503547,1705935143127,-500.0,0.00055342,120]
[312503548,1705935143155,-515.92210337,0.00055342,120]
[312503549,1705935143183,-326.42611031,0.00055342,120]
[312503550,1705935143211,-711.06,0.00055342,120]
[312503551,1705935143239,-714.27,0.00055342,120]
[312503552,1705935143267,-918.11,0.00055342,120]
[312503553,1705935143297,-500.0,0.00055342,120]
[312503554,1705935143326,-500.0,0.00055342,120]
[312503555,1705935143354,-514.39532442,0.00055342,120]
[312503556,1705935143382,-500.0,0.00055342,120]
[312503557,1705935143408,-486.70393495,0.00055342,120]
[312503558,1705935143437,-687.84,0.00055342,120]
[312503559,1705935143465,-500.0,0.00055342,120]
[312503560,1705935143493,-500.0,0.00055342,120]
[312503561,1705935143520,-587.61,0.00055342,120]
[312503562,1705935143547,-500.0,0.00055342,120]
[312503563,1705935143576,-500.0,0.00055342,120]
[312503564,1705935143604,-500.0,0.00055342,120]
[312503565,1705935143630,-500.0,0.00055342,120]
[312503566,1705935143657,-882.35,0.00055342,120]
[312503567,1705935143684,-831.94,0.00055342,120]
[312503568,1705935143711,-500.0,0.00055342,120]
[312503569,1705935143738,-1066.83,0.00055342,120]
[312503570,1705935143766,-506.4,0.00055342,120]
[312503571,1705935143794,-500.0,0.00055342,120]
[312503572,1705935143822,-500.0,0.00055342,120]
[312503573,1705935143850,-500.0,0.00055342,120]
[312503574,1705935143878,-692.09,0.00055342,120]
[312503575,1705935143907,-500.0,0.00055342,120]
[312503576,1705935143935,-500.0,0.00055342,120]
[312503577,1705935143963,-500.0,0.00055342,120]
[312503578,1705935143991,-548.63,0.00055342,120]
[312503579,1705935144020,-500.0,0.00055342,120]
[312503580,1705935144048,-500.0,0.00055342,120]
[312503581,1705935144078,-500.0,0.00055342,120]
[312503582,1705935144106,-726.93,0.00055342,120]
[312503583,1705935144134,-533.44,0.00055342,120]
[312503584,1705935144163,-801.5,0.00055342,120]
[312503585,1705935144193,-500.0,0.00055342,120]
[312503586,1705935144221,-623.41502606,0.00055342,120]
[312503587,1705935144247,-500.0,0.00055342,120]
[312503588,1705935144275,-500.0,0.00055342,120]
[312503589,1705935144304,-500.0,0.00055342,120]
[312503590,1705935144331,-447.57213007,0.00055342,120]
[312503591,1705935144359,-500.0,0.00055342,120]
[312503592,1705935144387,-500.0,0.00055342,120]
[312503593,1705935144414,-500.0,0.00055342,120]
[312503594,1705935144442,-500.0,0.00055342,120]
[312503595,1705935144469,-517.9,0.00055342,120]
[312503596,1705935144495,-500.0,0.00055342,120]
[312503597,1705935144522,-533.97744401,0.00055342,120]
[312503598,1705935144550,-500.0,0.00055342,120]
[312503599,1705935144578,-500.0,0.00055342,120]
[312503600,1705935144605,-539.03,0.00055342,120]
[312503601,1705935144631,-500.0,0.00055342,120]
[312503602,1705935144658,-500.0,0.00055342,120]
[312503603,1705935144685,-500.0,0.00055342,120]
[312503604,1705935144713,-500.0,0.00055342,120]
[312503605,1705935144739,-500.0,0.00055342,120]
[312503606,1705935144766,-541.94,0.00055342,120]
[312503607,1705935144793,-500.0,0.00055342,120]
[312503608,1705935144820,-628.32,0.00055342,120]
[312503609,1705935144848,-500.0,0.00055342,120]
[312503610,1705935144876,-500.0,0.00055342,120]
[312503611,1705935144904,-510.77899034,0.00055342,120]
[312503612,1705935144933,-1064.71,0.00055342,120]
[312503613,1705935144962,-500.0,0.00055342,120]
[312503614,1705935144990,-500.0,0.00055342,120]
[312503615,1705935145018,-500.0,0.00055342,120]
[312503616,1705935145046,-500.0,0.00055342,120]
[312503617,1705935145074,-500.0,0.00055342,120]
[312503618,1705935145101,-527.63753586,0.00055342,120]
[312503619,1705935145128,-500.0,0.00055342,120]
[312503620,1705935145155,-500.0,0.00055342,120]
[312503621,1705935145181,-500.0,0.00055342,120]
[312503622,1705935145207,-500.0,0.00055342,120]
[312503623,1705935145236,-688.57,0.00055342,120]
[312503624,1705935145263,-515.35,0.00055342,120]
[312503625,1705935145293,-500.0,0.00055342,120]
[312503626,1705935145320,-500.0,0.00055342,120]
[312503627,1705935145349,-532.26,0.00055342,120]
[312503628,1705935145375,-429.58,0.00055342,120]
[312503629,1705935145402,-500.0,0.00055342,120]
[312503630,1705935145428,-500.0,0.00055342,120]
[312503631,1705935145455,-500.0,0.00055342,120]
[312503632,1705935145484,-500.0,0.00055342,120]
[312503633,1705935145511,-511.93,0.00055342,120]
[312503634,1705935145537,-185.18766113,0.00055342,120]
[312503642,1705935145735,-852.71,0.00055342,120]
[312503645,1705935145764,-500.0,0.00055342,120]
[312503647,1705935145792,-500.0,0.00055342,120]
[312503649,1705935145819,-555.46875136,0.00055342,120]
[312503652,1705935145847,-500.0,0.00055342,120]
[312503654,1705935145875,-500.0,0.00055342,120]
[312503656,1705935145904,-390.20498394,0.00055342,120]
[312503659,1705935145933,-500.0,0.00055342,120]
[312503661,1705935145962,-500.0,0.00055342,120]
[312503664,1705935145991,-500.0,0.00055342,120]
[312503666,1705935146020,-500.0,0.00055342,120]
[312503668,1705935146050,-500.0,0.00055342,120]
[312503671,1705935146080,-749.91,0.00055342,120]
[312503673,1705935146111,-500.0,0.00055342,120]
[312503676,1705935146142,-1191.21,0.00055342,120]
[312503678,1705935146173,-500.0,0.00055342,120]
[312503681,1705935146203,-500.0,0.00055342,120]
[312503683,1705935146234,-865.73,0.00055342,120]
[312503686,1705935146265,-500.0,0.00055342,120]
[312503688,1705935146294,-706.74,0.00055342,120]
[312503691,1705935146327,-500.0,0.00055342,120]
[312503693,1705935146356,-500.0,0.00055342,120]
[312503695,1705935146384,-1450.12,0.00055342,120]
[312503698,1705935146415,-681.22,0.00055342,120]
[312503700,1705935146444,-500.0,0.00055342,120]
[312503702,1705935146474,-1062.77,0.00055342,120]
[312503705,1705935146503,-547.64,0.00055342,120]
[312503706,1705935146531,-756.07,0.00055342,120]
[312503707,1705935146560,-500.0,0.00055342,120]
[312503708,1705935146592,-500.0,0.00055342,120]
[312503709,1705935146621,-520.16,0.00055342,120]
[312503710,1705935146651,-978.9,0.00055342,120]
[312503711,1705935146680,-1020.07,0.00055342,120]
[312503712,1705935146709,-227.93751825,0.00055342,120]
[312503713,1705935146738,-512.51920088,0.00055342,120]
[312503714,1705935146767,-1380.88,0.00055342,120]
[312503715,1705935146798,-500.0,0.00055342,120]
[312503716,1705935146828,-922.01,0.00055342,120]
[312503717,1705935146859,-500.0,0.00055342,120]
[312503718,1705935146890,-570.7,0.00055342,120]
[312503719,1705935146920,-500.0,0.00055342,120]
[312503720,1705935146951,-680.6,0.00055342,120]
[312503721,1705935146980,-601.19208485,0.00055342,120]
[312503722,1705935147010,-500.0,0.00055342,120]
[312503723,1705935147042,-500.0,0.00055342,120]
[312503724,1705935147074,-1255.4,0.00055342,120]
[312503725,1705935147103,-500.0,0.00055342,120]
[312503726,1705935147134,-500.0,0.00055342,120]
[312503727,1705935147163,-1221.5,0.00055342,120]
[312503728,1705935147195,-500.0,0.00055342,120]
[312503729,1705935147225,-809.51,0.00055342,120]
[312503730,1705935147255,-500.0,0.00055342,120]
[312503731,1705935147283,-1170.01,0.00055342,120]
[312503732,1705935147315,-500.0,0.00055342,120]
[312503733,1705935147344,-1447.81,0.00055342,120]
[312503734,1705935147373,-500.0,0.00055342,120]
[312503735,1705935147402,-2684.03,0.00055342,120]
[312503736,1705935147431,-500.0,0.00055342,120]
[312503737,1705935147460,-1726.87,0.00055342,120]
[312503738,1705935147489,-970.29,0.00055342,120]
[312503739,1705935147519,-513.65948184,0.00055342,120]
[312503740,1705935147548,-791.47,0.00055342,120]
[312503741,1705935147579,-709.57,0.00055342,120]
[312503742,1705935147606,-500.0,0.00055342,120]
[312503743,1705935147635,-500.0,0.00055342,120]
[312503744,1705935147663,-556.49,0.00055342,120]
[312503745,1705935147692,-1387.83,0.00055342,120]
[312503746,1705935147721,-500.0,0.00055342,120]
[312503747,1705935147751,-717.18,0.00055342,120]
[312503748,1705935147780,-685.25,0.00055342,120]
[312503749,1705935147810,-1397.88,0.00055342,120]
[312503750,1705935147840,-1037.49,0.00055342,120]
[312503751,1705935147868,-610.22,0.00055342,120]
[312503752,1705935147900,-500.0,0.00055342,120]
[312503753,1705935147929,-937.59,0.00055342,120]
[312503754,1705935147958,-930.16,0.00055342,120]
[312503755,1705935147987,-500.0,0.00055342,120]
[312503756,1705935148017,-510.67,0.00055342,120]
[312503757,1705935148048,-721.94,0.00055342,120]
[312503758,1705935148078,-927.6,0.00055342,120]
[312503759,1705935148106,-500.0,0.00055342,120]
[312503760,1705935148134,-500.0,0.00055342,120]
[312503761,1705935148162,-1284.87,0.00055342,120]
[312503762,1705935148191,-658.41,0.00055342,120]
[312503763,1705935148219,-500.0,0.00055342,120]
[312503764,1705935148248,-500.0,0.00055342,120]
[312503765,1705935148278,-500.0,0.00055342,120]
[312503766,1705935148307,-500.0,0.00055342,120]
[312503767,1705935148334,-1324.43,0.00055342,120]
[312503768,1705935148363,-1074.78,0.00055342,120]
[312503769,1705935148391,-500.0,0.00055342,120]
[312503770,1705935148419,-854.08,0.00055342,120]
[312503771,1705935148447,-500.0,0.00055342,120]
[312503772,1705935148476,-500.0,0.00055342,120]
[312503773,1705935148505,-669.07,0.00055342,120]
[312503774,1705935148534,-810.62,0.00055342,120]
[312503775,1705935148564,-1043.64,0.00055342,120]
[312503776,1705935148599,-1068.91,0.00055342,120]
[312503777,1705935148630,-500.0,0.00055342,120]
[312503778,1705935148661,-1264.76,0.00055342,120]
[312503779,1705935148691,-434.98664707,0.00055342,120]
[312503780,1705935148721,-537.28,0.00055342,120]
[312503781,1705935148752,-500.0,0.00055342,120]
[312503782,1705935148959,-596.95,0.00055342,120]
[312503783,1705935148990,-500.0,0.00055342,120]
[312503784,1705935149019,-375.69082884,0.00055342,120]
[312503785,1705935149050,-738.6,0.00055342,120]
[312503786,1705935149083,-660.61,0.00055342,120]
[312503787,1705935149114,-500.0,0.00055342,120]
[312503788,1705935149147,-500.0,0.00055342,120]
[312503789,1705935149178,-700.4,0.00055342,120]
[312503790,1705935149207,-500.0,0.00055342,120]
[312503791,1705935149237,-821.95,0.00055342,120]
[312503792,1705935149266,-500.0,0.00055342,120]
[312503793,1705935149295,-722.7,0.00055342,120]
[312503794,1705935149332,-648.78,0.00055342,120]
[312503795,1705935149363,-764.02,0.00055342,120]
[312503796,1705935149397,-500.0,0.00055342,120]
[312503797,1705935149429,-1066.38,0.00055342,120]
[312503798,1705935149458,-2325.98,0.00055342,120]
[312503799,1705935149486,-500.0,0.00055342,120]
[312503800,1705935149515,-500.0,0.00055342,120]
[312503801,1705935149542,-1073.56,0.00055342,120]
[312503802,1705935149568,-500.0,0.00055342,120]
[312503803,1705935149596,-500.0,0.00055342,120]
[312503804,1705935149623,-972.0,0.00055342,120]
[312503805,1705935149650,-1026.23,0.00055342,120]
[312503806,1705935149676,-532.36,0.00055342,120]
[312503807,1705935149702,-500.0,0.00055342,120]
[312503808,1705935149729,-500.0,0.00055342,120]
[312503809,1705935149755,-1793.95,0.00055342,120]
[312503810,1705935149782,-500.0,0.00055342,120]
[312503811,1705935149809,-500.0,0.00055342,120]
[312503812,1705935149837,-500.0,0.00055342,120]
[312503813,1705935149864,-500.0,0.00055342,120]
[312503814,1705935149891,-960.21,0.00055342,120]
[312503815,1705935149919,-500.0,0.00055342,120]
[312503816,1705935149946,-1245.11,0.00055342,120]
[312503817,1705935149974,-500.0,0.00055342,120]
[312503818,1705935150002,-500.0,0.00055342,120]
[312503819,1705935150031,-500.0,0.00055342,120]
[312503820,1705935150060,-1202.84,0.00055342,120]
[312503821,1705935150089,-500.0,0.00055342,120]
[312503822,1705935150121,-674.26,0.00055342,120]
[312503823,1705935150149,-1089.12,0.00055342,120]
[312503824,1705935150177,-500.0,0.00055342,120]
[312503825,1705935150206,-500.0,0.00055342,120]
[312503826,1705935150238,-1148.71,0.00055342,120]
[312503827,1705935150267,-1121.58,0.00055342,120]
[312503828,1705935150298,-500.0,0.00055342,120]
[312503829,1705935150325,-782.17,0.00055342,120]
[312503830,1705935150355,-500.0,0.00055342,120]
[312503831,1705935150384,-1269.81,0.00055342,120]
[312503832,1705935150412,-1163.79,0.00055342,120]
[312503833,1705935150439,-500.0,0.00055342,120]
[312503834,1705935150467,-500.0,0.00055342,120]
[312503835,1705935150497,-500.0,0.00055342,120]
[312503836,1705935150528,-337.88,0.00055342,120]
[312503837,1705935150561,-755.55,0.00055342,120]
[312503838,1705935150593,-500.0,0.00055342,120]
[312503839,1705935150628,-590.73,0.00055342,120]
[312503840,1705935150662,-500.0,0.00055342,120]
[312503841,1705935150696,-653.94,0.00055342,120]
[312503842,1705935150729,-500.0,0.00055342,120]
[312503843,1705935150759,-1082.1,0.00055342,120]
[312503844,1705935150789,-1119.29,0.00055342,120]
[312503845,1705935150821,-884.87,0.00055342,120]
[312503846,1705935150861,-1021.29,0.00055342,120]
[312503847,1705935150893,-590.44,0.00055342,120]
[312503848,1705935150930,-635.69254852,0.00055342,120]
[312503849,1705935150961,-500.0,0.00055342,120]
[312503850,1705935150991,-500.0,0.00055342,120]
[312503851,1705935151022,-557.86,0.00055342,120]
[312503852,1705935151052,-500.0,0.00055342,120]
[312503853,1705935151087,-922.84,0.00055342,120]
[312503854,1705935151116,-854.16,0.00055342,120]
[312503855,1705935151145,-500.0,0.00055342,120]
[312503856,1705935151175,-1360.93,0.00055342,120]
[312503857,1705935151202,-500.0,0.00055342,120]
[312503858,1705935151231,-612.83,0.00055342,120]
[312503859,1705935151258,-500.0,0.00055342,120]
[312503860,1705935151285,-500.0,0.00055342,120]
[312503861,1705935151314,-763.7,0.00055342,120]
[312503862,1705935151347,-862.53,0.00055342,120]
[312503863,1705935151375,-709.99,0.00055342,120]
[312503864,1705935151403,-716.16,0.00055342,120]
[312503865,1705935151430,-500.0,0.00055342,120]
[312503866,1705935151458,-743.65,0.00055342,120]
[312503867,1705935151486,-500.0,0.00055342,120]
[312503868,1705935151512,-500.0,0.00055342,120]
[312503869,1705935151540,-541.7611337,0.00055342,120]
[312503870,1705935151568,-501.89,0.00055342,120]
[312503871,1705935151600,-765.86,0.00055342,120]
[312503872,1705935151628,-1960.91,0.00055342,120]
[312503873,1705935151656,-500.0,0.00055342,120]
[312503874,1705935151685,-500.0,0.00055342,120]
[312503875,1705935151714,-864.85,0.00055342,120]
[312503876,1705935151742,-500.0,0.00055342,120]
[312503877,1705935151769,-500.0,0.00055342,120]
[312503878,1705935151797,-500.0,0.00055342,120]
[312503879,1705935151825,-895.93,0.00055342,120]
[312503880,1705935151855,-375.02,0.00055342,120]
[312503881,1705935151884,-652.75,0.00055342,120]
[312503882,1705935151915,-500.0,0.00055342,120]
[312503883,1705935151947,-1017.75,0.00055342,120]
[312503884,1705935151975,-718.71,0.00055342,120]
[312503885,1705935152005,-500.0,0.00055342,120]
[312503886,1705935152211,-500.0,0.00055342,120]
[312503887,1705935152241,-500.0,0.00055342,120]
[312503888,1705935152270,-950.95,0.00055342,120]
[312503889,1705935152297,-500.0,0.00055342,120]
[312503890,1705935152329,-1166.26,0.00055342,120]
[312503891,1705935152358,-500.0,0.00055342,120]
[312503892,1705935152387,-1163.88,0.00055342,120]
[312503893,1705935152415,-706.58,0.00055342,120]
[312503894,1705935152442,-500.0,0.00055342,120]
[312503895,1705935152470,-500.0,0.00055342,120]
[312503896,1705935152501,-500.0,0.00055342,120]
[312503897,1705935152529,-507.1973027,0.00055342,120]
[312503898,1705935152556,-500.0,0.00055342,120]
[312503899,1705935152586,-500.0,0.00055342,120]
[312503900,1705935152613,-775.78,0.00055342,120]
[312503901,1705935152642,-1841.93,0.00055342,120]
[312503902,1705935152670,-500.0,0.00055342,120]
[312503903,1705935152699,-500.0,0.00055342,120]
[312503904,1705935152728,-604.25,0.00055342,120]
[312503905,1705935152755,-500.0,0.00055342,120]
[312503906,1705935152783,-158.34624422,0.00055342,120]
[312503907,1705935152810,-500.0,0.00055342,120]
[312503908,1705935152841,-744.8,0.00055342,120]
[312503909,1705935152870,-500.0,0.00055342,120]
[312503910,1705935152900,-803.23,0.00055342,120]
[312503911,1705935152930,-500.0,0.00055342,120]
[312503912,1705935152959,-1391.49,0.00055342,120]
[312503913,1705935152987,-500.0,0.00055342,120]
[312503914,1705935153016,-743.79,0.00055342,120]
[312503915,1705935153043,-558.57328699,0.00055342,120]
[312503916,1705935153072,-758.95,0.00055342,120]
[312503917,1705935153103,-500.0,0.00055342,120]
[312503918,1705935153132,-805.81,0.00055342,120]
[312503919,1705935153162,-500.0,0.00055342,120]
[312503920,1705935153190,-500.0,0.00055342,120]
[312503921,1705935153219,-500.0,0.00055342,120]
[312503922,1705935153249,-575.63,0.00055342,120]
[312503923,1705935153278,-500.0,0.00055342,120]
[312503924,1705935153309,-500.0,0.00055342,120]
[312503925,1705935153336,-869.66,0.00055342,120]
[312503926,1705935153364,-500.0,0.00055342,120]
[312503927,1705935153391,-500.0,0.00055342,120]
[312503928,1705935153418,-500.0,0.00055342,120]
[312503929,1705935153445,-500.0,0.00055342,120]
[312503930,1705935153473,-500.0,0.00055342,120]
[312503931,1705935153501,-907.16,0.00055342,120]
[312503932,1705935153528,-619.23,0.00055342,120]
[312503933,1705935153555,-789.34,0.00055342,120]
[312503934,1705935153584,-500.0,0.00055342,120]
[312503935,1705935153612,-1452.65,0.00055342,120]
[312503936,1705935153639,-696.15,0.00055342,120]
[312503937,1705935153666,-500.0,0.00055342,120]
[312503938,1705935153693,-593.79,0.00055342,120]
[312503939,1705935153722,-500.0,0.00055342,120]
[312503940,1705935153749,-500.0,0.00055342,120]
[312503941,1705935153778,-1334.13,0.00055342,120]
[312503942,1705935153809,-500.0,0.00055342,120]
[312503943,1705935153838,-836.62,0.00055342,120]
[312503944,1705935153865,-837.72,0.00055342,120]
[312503945,1705935153893,-623.18,0.00055342,120]
[312503946,1705935153922,-1323.21,0.00055342,120]
[312503947,1705935153951,-500.0,0.00055342,120]
[312503948,1705935153979,-557.03,0.00055342,120]
[312503949,1705935154009,-609.57,0.00055342,120]
[312503950,1705935154038,-951.02,0.00055342,120]
[312503951,1705935154067,-1742.89,0.00055342,120]
[312503952,1705935154097,-500.0,0.00055342,120]
[312503953,1705935154124,-500.0,0.00055342,120]
[312503954,1705935154152,-500.0,0.00055342,120]
[312503955,1705935154179,-762.89,0.00055342,120]
[312503956,1705935154208,-650.96,0.00055342,120]
[312503957,1705935154236,-500.0,0.00055342,120]
[312503958,1705935154265,-659.39,0.00055342,120]
[312503959,1705935154296,-500.0,0.00055342,120]
[312503960,1705935154323,-500.0,0.00055342,120]
[312503961,1705935154354,-500.0,0.00055342,120]
[312503962,1705935154382,-651.75,0.00055342,120]
[312503963,1705935154410,-500.0,0.00055342,120]
[312503964,1705935154437,-500.0,0.00055342,120]
[312503965,1705935154466,-852.44,0.00055342,120]
[312503966,1705935154493,-500.0,0.00055342,120]
[312503967,1705935154521,-500.0,0.00055342,120]
[312503968,1705935154547,-500.0,0.00055342,120]
[312503969,1705935154576,-500.0,0.00055342,120]
[312503970,1705935154604,-500.0,0.00055342,120]
[312503971,1705935154633,-500.0,0.00055342,120]
[312503972,1705935154660,-1607.72,0.00055342,120]
[312503973,1705935154688,-500.0,0.00055342,120]
[312503974,1705935154715,-1788.51,0.00055342,120]
[312503975,1705935154743,-500.0,0.00055342,120]
[312503976,1705935154770,-669.85,0.00055342,120]
[312503977,1705935154797,-744.04,0.00055342,120]
[312503978,1705935154824,-500.0,0.00055342,120]
[312503979,1705935154853,-645.14,0.00055342,120]
[312503980,1705935154881,-608.8,0.00055342,120]
[312503981,1705935154910,-500.0,0.00055342,120]
[312503982,1705935154939,-500.0,0.00055342,120]
[312503983,1705935154967,-702.16,0.00055342,120]
[312503984,1705935154995,-300.0,0.00055342,120]
[312503985,1705935155025,-559.87,0.00055342,120]
[312503986,1705935155055,-500.0,0.00055342,120]
[312503987,1705935155086,-500.0,0.00055342,120]
[312503988,1705935155114,-1326.85,0.00055342,120]
[312503989,1705935155315,-500.0,0.00055342,120]
[312503990,1705935155349,-1404.36,0.00055342,120]
[312503991,1705935155379,-1490.02,0.00055342,120]
[312503992,1705935155409,-500.0,0.00055342,120]
[312503993,1705935155439,-525.30008904,0.00055342,120]
[312503994,1705935155471,-500.0,0.00055342,120]
[312503995,1705935155500,-500.0,0.00055342,120]
[312503996,1705935155530,-500.0,0.00055342,120]
[312503997,1705935155561,-500.0,0.00055342,120]
[312503998,1705935155591,-527.89170686,0.00055342,120]
[312503999,1705935155621,-1273.58,0.00055342,120]
[312504000,1705935155652,-500.0,0.00055342,120]
[312504001,1705935155684,-500.0,0.00055342,120]
[312504002,1705935155715,-500.0,0.00055342,120]
[312504003,1705935155745,-620.76127672,0.00055342,50]
[312504004,1705935155777,-1577.88,0.00055342,120]
[312504005,1705935155810,-850.44,0.00055342,120]
[312504006,1705935155843,-500.0,0.00055342,120]
[312504007,1705935155874,-665.34,0.00055342,120]
[312504008,1705935155906,-500.0,0.00055342,120]
[312504009,1705935155940,-836.88,0.00055342,120]
[312504010,1705935155972,-500.0,0.00055342,120]
[312504011,1705935156007,-1144.66,0.00055342,120]
[312504012,1705935156039,-500.0,0.00055342,120]
[312504013,1705935156071,-649.5,0.00055342,120]
[312504014,1705935156105,-500.0,0.00055342,120]
[312504015,1705935156138,-1273.46,0.00055342,120]
[312504016,1705935156169,-991.3,0.00055342,120]
[312504017,1705935156202,-500.0,0.00055342,120]
[312504018,1705935156234,-500.0,0.00055342,120]
[312504019,1705935156266,-500.0,0.00055342,120]
[312504020,1705935156299,-1047.97,0.00055342,120]
[312504021,1705935156336,-500.0,0.00055342,120]
[312504022,1705935156370,-500.0,0.00055342,120]
[312504023,1705935156404,-500.0,0.00055342,120]
[312504024,1705935156436,-500.0,0.00055342,120]
[312504025,1705935156466,-500.0,0.00055342,120]
[312504026,1705935156501,-468.15325351,0.00055342,120]
[312504027,1705935156532,-600.2,0.00055342,120]
[312504028,1705935156563,-500.0,0.00055342,120]
[312504029,1705935156593,-500.0,0.00055342,120]
[312504030,1705935156624,-754.61,0.00055342,120]
[312504031,1705935156655,-852.62,0.00055342,120]
[312504032,1705935156684,-836.94,0.00055342,120]
[312504033,1705935156714,-500.0,0.00055342,120]
[312504034,1705935156743,-1180.08,0.00055342,120]
[312504035,1705935156775,-1099.97,0.00055342,120]
[312504036,1705935156805,-500.0,0.00055342,120]
[312504037,1705935156837,-500.0,0.00055342,120]
[312504038,1705935156865,-500.0,0.00055342,120]
[312504039,1705935156894,-500.0,0.00055342,120]
[312504040,1705935156925,-3067.18,0.00055342,120]
[312504041,1705935156956,-500.0,0.00055342,120]
[312504042,1705935156985,-857.36,0.00055342,120]
[312504043,1705935157016,-1899.47,0.00055342,120]
[312504044,1705935157054,-500.0,0.00055342,120]
[312504045,1705935157090,-597.17,0.00055342,120]
[312504046,1705935157122,-1527.68,0.00055342,120]
[312504047,1705935157154,-1800.8,0.00055342,120]
[312504048,1705935157187,-806.43,0.00055342,120]
[312504049,1705935157224,-500.0,0.00055342,120]
[312504050,1705935157255,-2110.23,0.00055342,120]
[312504051,1705935157286,-500.0,0.00055342,120]